[Event "Titled Tuesday Blitz January 31 Early 2023"]
[White "Souleidis, Georgios"]
[Black "Yeritsyan, Hayk"]
[WhiteFideId "4206827"]
[BlackFideId "13307320"]
[WhiteElo "2419"]
[BlackElo "2241"]
[Result "1-0"]
[Round "04"]
[TimeControl "180+2"]
[Date "2023.01.31"]
[WhiteClock "0:00:25"]
[BlackClock "0:00:09"]

1. e4 {[%clk 0:03:00]}  c6 {[%clk 0:02:55]} 2. d3 {[%clk 0:03:00]}  d5 {[%clk 0:02:54]} 3. Nf3 {[%clk 0:03:01]}  Bg4 {[%clk 0:02:52]} 4. h3 {[%clk 0:03:00]}  Bxf3 {[%clk 0:02:52]} 5. Qxf3 {[%clk 0:03:01]}  e6 {[%clk 0:02:52]} 6. g3 {[%clk 0:03:01]}  Nf6 {[%clk 0:02:51]} 7. Bg2 {[%clk 0:03:00]}  Be7 {[%clk 0:02:51]} 8. O-O {[%clk 0:03:00]}  O-O {[%clk 0:02:48]} 9. Qe2 {[%clk 0:03:01]}  Na6 {[%clk 0:02:46]} 10. e5 {[%clk 0:02:58]}  Nd7 {[%clk 0:02:46]} 11. f4 {[%clk 0:02:58]}  c5 {[%clk 0:02:44]} 12. c3 {[%clk 0:02:58]}  Nab8 {[%clk 0:02:44]} 13. d4 {[%clk 0:02:57]}  cxd4 {[%clk 0:02:42]} 14. cxd4 {[%clk 0:02:58]}  Nc6 {[%clk 0:02:43]} 15. Be3 {[%clk 0:02:58]}  Rc8 {[%clk 0:02:36]} 16. Nc3 {[%clk 0:02:58]}  Na5 {[%clk 0:02:27]} 17. Rac1 {[%clk 0:02:55]}  Nc4 {[%clk 0:02:21]} 18. Bf2 {[%clk 0:02:49]}  Qb6 {[%clk 0:02:10]} 19. b3 {[%clk 0:02:47]}  Na3 {[%clk 0:02:03]} 20. f5 {[%clk 0:02:27]}  Bg5 {[%clk 0:01:36]} 21. Be3 {[%clk 0:02:27]}  Bxe3+ {[%clk 0:01:24]} 22. Qxe3 {[%clk 0:02:28]}  Nb5 {[%clk 0:01:15]} 23. Nxb5 {[%clk 0:02:16]}  Qxb5 {[%clk 0:01:12]} 24. f6 {[%clk 0:02:16]}  Qb4 {[%clk 0:01:02]} 25. a3 {[%clk 0:01:07]}  Qb6 {[%clk 0:00:39]} 26. Qg5 {[%clk 0:00:31]}  Qxd4+ {[%clk 0:00:36]} 27. Kh2 {[%clk 0:00:32]}  Nxf6 {[%clk 0:00:16]} 28. exf6 {[%clk 0:00:32]}  g6 {[%clk 0:00:09]} 29. Qh6 {[%clk 0:00:25]} 1-0


[Site "https://www.chess.com"]

[Event "Titled Tuesday Blitz January 31 Early 2023"]
[White "Lewtak, Damian"]
[Black "Manon-og, Ramon Jr."]
[WhiteFideId "1141724"]
[BlackFideId "5200776"]
[WhiteElo "2381"]
[BlackElo "1999"]
[Result "1-0"]
[Round "04"]
[TimeControl "180+2"]
[Date "2023.01.31"]
[WhiteClock "0:00:59"]
[BlackClock "0:00:50"]

1. e4 {[%clk 0:03:00]}  c5 {[%clk 0:02:54]} 2. Nf3 {[%clk 0:03:00]}  d6 {[%clk 0:02:42]} 3. Bb5+ {[%clk 0:02:59]}  Nd7 {[%clk 0:02:41]} 4. O-O {[%clk 0:02:59]}  a6 {[%clk 0:02:41]} 5. Bd3 {[%clk 0:02:58]}  e5 {[%clk 0:02:41]} 6. Re1 {[%clk 0:02:58]}  Be7 {[%clk 0:02:41]} 7. c3 {[%clk 0:02:57]}  Ngf6 {[%clk 0:02:41]} 8. Bc2 {[%clk 0:02:55]}  O-O {[%clk 0:02:41]} 9. d4 {[%clk 0:02:55]}  cxd4 {[%clk 0:02:42]} 10. cxd4 {[%clk 0:02:55]}  b5 {[%clk 0:02:41]} 11. Nc3 {[%clk 0:02:55]}  Bb7 {[%clk 0:02:41]} 12. Bg5 {[%clk 0:02:51]}  Rc8 {[%clk 0:02:39]} 13. dxe5 {[%clk 0:02:45]}  dxe5 {[%clk 0:02:39]} 14. a3 {[%clk 0:02:44]}  h6 {[%clk 0:02:36]} 15. Bh4 {[%clk 0:02:43]}  Qb6 {[%clk 0:02:32]} 16. Rc1 {[%clk 0:02:28]}  Rfd8 {[%clk 0:02:30]} 17. Qe2 {[%clk 0:02:22]}  Qe6 {[%clk 0:02:24]} 18. Nd5 {[%clk 0:02:19]}  Bc5 {[%clk 0:02:02]} 19. Bb3 {[%clk 0:02:08]}  Qg4 {[%clk 0:01:57]} 20. h3 {[%clk 0:01:51]}  Qh5 {[%clk 0:01:42]} 21. g4 {[%clk 0:01:51]}  Nxg4 {[%clk 0:01:38]} 22. hxg4 {[%clk 0:01:52]}  Qxg4+ {[%clk 0:01:38]} 23. Kh2 {[%clk 0:01:43]}  Qh5 {[%clk 0:01:23]} 24. Kg3 {[%clk 0:01:31]}  Qg6+ {[%clk 0:01:17]} 25. Kh3 {[%clk 0:01:26]}  Qe6+ {[%clk 0:01:06]} 26. Kh2 {[%clk 0:01:25]}  Qg4 {[%clk 0:00:57]} 27. Bxd8 {[%clk 0:01:10]}  Rxd8 {[%clk 0:00:57]} 28. Rg1 {[%clk 0:01:00]}  Qf4+ {[%clk 0:00:50]} 29. Nxf4 {[%clk 0:00:59]} 1-0


[Site "https://www.chess.com"]

[Event "Titled Tuesday Blitz January 31 Early 2023"]
[White "Delorme, Alban"]
[Black "Indjic, Aleksandar"]
[WhiteFideId "623636"]
[BlackFideId "911925"]
[WhiteElo "2298"]
[BlackElo "2618"]
[Result "0-1"]
[Round "04"]
[TimeControl "180+2"]
[Date "2023.01.31"]
[WhiteClock "0:00:47"]
[BlackClock "0:00:28"]

1. e4 {[%clk 0:03:00]}  d5 {[%clk 0:02:21]} 2. exd5 {[%clk 0:02:59]}  Qxd5 {[%clk 0:02:22]} 3. Nc3 {[%clk 0:02:59]}  Qd6 {[%clk 0:02:22]} 4. d4 {[%clk 0:02:59]}  Nf6 {[%clk 0:02:22]} 5. Nf3 {[%clk 0:02:59]}  a6 {[%clk 0:02:23]} 6. Bc4 {[%clk 0:02:54]}  b5 {[%clk 0:02:17]} 7. Bb3 {[%clk 0:02:53]}  e6 {[%clk 0:02:17]} 8. O-O {[%clk 0:02:53]}  Bb7 {[%clk 0:02:17]} 9. Re1 {[%clk 0:02:51]}  Be7 {[%clk 0:02:17]} 10. Ne5 {[%clk 0:02:48]}  O-O {[%clk 0:02:16]} 11. Bf4 {[%clk 0:02:47]}  Qd8 {[%clk 0:02:13]} 12. Qe2 {[%clk 0:02:42]}  b4 {[%clk 0:02:04]} 13. Nxf7 {[%clk 0:02:28]}  Qd7 {[%clk 0:01:02]} 14. Bxe6 {[%clk 0:02:10]}  Qxd4 {[%clk 0:01:01]} 15. Be5 {[%clk 0:01:32]}  Qb6 {[%clk 0:00:44]} 16. Ng5+ {[%clk 0:01:12]}  Kh8 {[%clk 0:00:43]} 17. Bxf6 {[%clk 0:00:55]}  Rxf6 {[%clk 0:00:29]} 18. Qh5 {[%clk 0:00:47]}  Qxf2+ {[%clk 0:00:28]} 0-1


[Site "https://www.chess.com"]

[Event "Titled Tuesday Blitz January 31 Early 2023"]
[White "Fernandez Garcia, Gumersindo"]
[Black "Borges Feria, Yasel"]
[WhiteFideId "24516740"]
[BlackFideId "3504921"]
[WhiteElo "2160"]
[BlackElo "2439"]
[Result "0-1"]
[Round "04"]
[TimeControl "180+2"]
[Date "2023.01.31"]
[WhiteClock "0:00:04"]
[BlackClock "0:00:19"]

1. b3 {[%clk 0:03:00]}  c6 {[%clk 0:02:58]} 2. Bb2 {[%clk 0:02:58]}  d5 {[%clk 0:02:58]} 3. g3 {[%clk 0:02:56]}  Nf6 {[%clk 0:02:59]} 4. Bg2 {[%clk 0:02:57]}  Bf5 {[%clk 0:02:59]} 5. Nf3 {[%clk 0:02:57]}  e6 {[%clk 0:02:59]} 6. O-O {[%clk 0:02:57]}  h6 {[%clk 0:03:00]} 7. d3 {[%clk 0:02:55]}  Nbd7 {[%clk 0:03:00]} 8. c4 {[%clk 0:02:56]}  Bc5 {[%clk 0:02:54]} 9. d4 {[%clk 0:02:50]}  Be7 {[%clk 0:02:50]} 10. Nbd2 {[%clk 0:02:50]}  O-O {[%clk 0:02:50]} 11. Ne5 {[%clk 0:02:46]}  a5 {[%clk 0:02:47]} 12. a3 {[%clk 0:02:43]}  Bh7 {[%clk 0:02:39]} 13. Re1 {[%clk 0:02:40]}  Ne4 {[%clk 0:02:10]} 14. Nxe4 {[%clk 0:02:36]}  Bxe4 {[%clk 0:02:11]} 15. Bxe4 {[%clk 0:02:28]}  dxe4 {[%clk 0:02:10]} 16. Nxd7 {[%clk 0:02:11]}  Qxd7 {[%clk 0:02:09]} 17. Qc2 {[%clk 0:02:12]}  f5 {[%clk 0:01:56]} 18. Rad1 {[%clk 0:02:08]}  Bf6 {[%clk 0:01:50]} 19. f3 {[%clk 0:02:05]}  exf3 {[%clk 0:01:49]} 20. exf3 {[%clk 0:02:05]}  Rfe8 {[%clk 0:01:50]} 21. f4 {[%clk 0:01:58]}  Rad8 {[%clk 0:01:47]} 22. Kg2 {[%clk 0:01:22]}  b5 {[%clk 0:01:39]} 23. Bc3 {[%clk 0:01:18]}  a4 {[%clk 0:01:39]} 24. cxb5 {[%clk 0:01:15]}  Qd5+ {[%clk 0:01:37]} 25. Kg1 {[%clk 0:00:54]}  axb3 {[%clk 0:01:37]} 26. Qg2 {[%clk 0:00:54]}  cxb5 {[%clk 0:01:36]} 27. Qxd5 {[%clk 0:00:54]}  Rxd5 {[%clk 0:01:36]} 28. Bb2 {[%clk 0:00:52]}  Kf7 {[%clk 0:01:34]} 29. Rd3 {[%clk 0:00:52]}  Rb8 {[%clk 0:01:16]} 30. Red1 {[%clk 0:00:49]}  Rc8 {[%clk 0:01:13]} 31. Rxb3 {[%clk 0:00:47]}  Rc2 {[%clk 0:01:14]} 32. Kh1 {[%clk 0:00:45]}  g5 {[%clk 0:01:13]} 33. fxg5 {[%clk 0:00:33]}  hxg5 {[%clk 0:01:14]} 34. h3 {[%clk 0:00:31]}  f4 {[%clk 0:00:59]} 35. gxf4 {[%clk 0:00:32]}  gxf4 {[%clk 0:01:00]} 36. Rb4 {[%clk 0:00:28]}  Kg6 {[%clk 0:00:57]} 37. Rf1 {[%clk 0:00:25]}  Kf5 {[%clk 0:00:51]} 38. Bc1 {[%clk 0:00:26]}  Bg5 {[%clk 0:00:50]} 39. a4 {[%clk 0:00:21]}  bxa4 {[%clk 0:00:50]} 40. Rxa4 {[%clk 0:00:22]}  Rb5 {[%clk 0:00:47]} 41. d5 {[%clk 0:00:19]}  e5 {[%clk 0:00:45]} 42. d6 {[%clk 0:00:13]}  Rd5 {[%clk 0:00:45]} 43. Ra6 {[%clk 0:00:12]}  Rc3 {[%clk 0:00:44]} 44. Kg2 {[%clk 0:00:11]}  Rcd3 {[%clk 0:00:44]} 45. h4 {[%clk 0:00:10]}  Bxh4 {[%clk 0:00:42]} 46. Ba3 {[%clk 0:00:10]}  Kg4 {[%clk 0:00:37]} 47. Ra7 {[%clk 0:00:07]}  Rg3+ {[%clk 0:00:28]} 48. Kh1 {[%clk 0:00:07]}  Rh3+ {[%clk 0:00:28]} 49. Kg1 {[%clk 0:00:07]}  Rdd3 {[%clk 0:00:27]} 50. Rg7+ {[%clk 0:00:07]}  Kf5 {[%clk 0:00:19]} 51. d7 {[%clk 0:00:04]}  Bf6 {[%clk 0:00:19]} 0-1


[Site "https://www.chess.com"]

[Event "Titled Tuesday Blitz January 31 Early 2023"]
[White "Oganian, Miran"]
[Black "Gheorghiu, Calin"]
[WhiteFideId "4122488"]
[BlackFideId "1200305"]
[WhiteElo "2439"]
[BlackElo "2313"]
[Result "1/2-1/2"]
[Round "04"]
[TimeControl "180+2"]
[Date "2023.01.31"]
[WhiteClock "0:00:04"]
[BlackClock "0:00:04"]

1. e4 {[%clk 0:02:59]}  c5 {[%clk 0:02:57]} 2. Nf3 {[%clk 0:02:53]}  d6 {[%clk 0:02:57]} 3. Bb5+ {[%clk 0:02:51]}  Nd7 {[%clk 0:02:55]} 4. d4 {[%clk 0:02:51]}  cxd4 {[%clk 0:02:55]} 5. Qxd4 {[%clk 0:02:52]}  a6 {[%clk 0:02:54]} 6. Bxd7+ {[%clk 0:02:53]}  Bxd7 {[%clk 0:02:54]} 7. c4 {[%clk 0:02:53]}  Nf6 {[%clk 0:02:51]} 8. Nc3 {[%clk 0:02:53]}  e5 {[%clk 0:02:40]} 9. Qd3 {[%clk 0:02:52]}  Be7 {[%clk 0:02:37]} 10. Bg5 {[%clk 0:02:48]}  O-O {[%clk 0:02:32]} 11. O-O {[%clk 0:02:39]}  b5 {[%clk 0:02:26]} 12. b3 {[%clk 0:02:35]}  bxc4 {[%clk 0:02:23]} 13. bxc4 {[%clk 0:02:36]}  Rc8 {[%clk 0:02:23]} 14. Bxf6 {[%clk 0:02:35]}  Bxf6 {[%clk 0:02:22]} 15. Nd5 {[%clk 0:02:36]}  g6 {[%clk 0:02:11]} 16. Rad1 {[%clk 0:02:33]}  Bg7 {[%clk 0:02:10]} 17. h3 {[%clk 0:02:32]}  f5 {[%clk 0:02:07]} 18. Nc3 {[%clk 0:02:26]}  Be6 {[%clk 0:01:59]} 19. Nd5 {[%clk 0:02:01]}  fxe4 {[%clk 0:01:49]} 20. Qxe4 {[%clk 0:02:00]}  Bf5 {[%clk 0:01:49]} 21. Qe2 {[%clk 0:02:00]}  e4 {[%clk 0:01:48]} 22. Nd4 {[%clk 0:01:58]}  Qh4 {[%clk 0:01:19]} 23. g3 {[%clk 0:01:53]}  Qd8 {[%clk 0:00:46]} 24. Nxf5 {[%clk 0:01:53]}  gxf5 {[%clk 0:00:44]} 25. Nf4 {[%clk 0:01:49]}  Qf6 {[%clk 0:00:38]} 26. Qd2 {[%clk 0:01:48]}  Rxc4 {[%clk 0:00:32]} 27. Qd5+ {[%clk 0:01:47]}  Qf7 {[%clk 0:00:32]} 28. Ne6 {[%clk 0:01:47]}  Rfc8 {[%clk 0:00:28]} 29. Nxg7 {[%clk 0:01:17]}  Qxd5 {[%clk 0:00:28]} 30. Rxd5 {[%clk 0:01:18]}  Kxg7 {[%clk 0:00:28]} 31. Rxf5 {[%clk 0:01:17]}  R8c5 {[%clk 0:00:24]} 32. Rf4 {[%clk 0:01:17]}  d5 {[%clk 0:00:24]} 33. Kg2 {[%clk 0:01:15]}  Rc2 {[%clk 0:00:23]} 34. Rb1 {[%clk 0:01:11]}  Rxa2 {[%clk 0:00:18]} 35. Rb7+ {[%clk 0:01:11]}  Kg6 {[%clk 0:00:18]} 36. Rb6+ {[%clk 0:01:09]}  Kg7 {[%clk 0:00:19]} 37. Rb7+ {[%clk 0:01:09]}  Kg6 {[%clk 0:00:19]} 38. Rbf7 {[%clk 0:01:09]}  Rc6 {[%clk 0:00:15]} 39. h4 {[%clk 0:01:08]}  e3 {[%clk 0:00:14]} 40. h5+ {[%clk 0:00:30]}  Kxh5 {[%clk 0:00:14]} 41. Rh4+ {[%clk 0:00:31]}  Kg6 {[%clk 0:00:15]} 42. Rfxh7 {[%clk 0:00:29]}  Rxf2+ {[%clk 0:00:15]} 43. Kh3 {[%clk 0:00:29]}  Rcc2 {[%clk 0:00:15]} 44. R4h6+ {[%clk 0:00:26]}  Kf5 {[%clk 0:00:15]} 45. Rh5+ {[%clk 0:00:21]}  Ke4 {[%clk 0:00:15]} 46. Re7+ {[%clk 0:00:22]}  Kd4 {[%clk 0:00:14]} 47. Rh4+ {[%clk 0:00:20]}  Kd3 {[%clk 0:00:14]} 48. Ra4 {[%clk 0:00:20]}  d4 {[%clk 0:00:13]} 49. Rd7 {[%clk 0:00:18]}  Rh2+ {[%clk 0:00:08]} 50. Kg4 {[%clk 0:00:18]}  Rc4 {[%clk 0:00:08]} 51. Ra3+ {[%clk 0:00:16]}  Rc3 {[%clk 0:00:08]} 52. Ra4 {[%clk 0:00:17]}  Rc4 {[%clk 0:00:07]} 53. Ra3+ {[%clk 0:00:16]}  Ke4 {[%clk 0:00:07]} 54. Re7+ {[%clk 0:00:15]}  Kd5 {[%clk 0:00:08]} 55. Ra5+ {[%clk 0:00:11]}  Kd6 {[%clk 0:00:08]} 56. Rae5 {[%clk 0:00:09]}  d3+ {[%clk 0:00:08]} 57. Kf3 {[%clk 0:00:06]}  d2 {[%clk 0:00:06]} 58. R5e6+ {[%clk 0:00:05]}  Kc5 {[%clk 0:00:06]} 59. Rd7 {[%clk 0:00:03]}  Kb4 {[%clk 0:00:04]} 60. Kxe3 {[%clk 0:00:02]}  Rc3+ {[%clk 0:00:03]} 61. Kf4 {[%clk 0:00:01]}  Rf2+ {[%clk 0:00:04]} 62. Kg5 {[%clk 0:00:02]}  Rc1 {[%clk 0:00:04]} 63. Rb6+ {[%clk 0:00:02]}  Kc5 {[%clk 0:00:04]} 64. Rbd6 {[%clk 0:00:02]}  Rc2 {[%clk 0:00:03]} 65. Rd5+ {[%clk 0:00:02]}  Kc4 {[%clk 0:00:03]} 66. g4 {[%clk 0:00:02]}  a5 {[%clk 0:00:03]} 67. Rxa5 {[%clk 0:00:02]}  Kb4 {[%clk 0:00:03]} 68. Rad5 {[%clk 0:00:02]}  Rc5 {[%clk 0:00:04]} 69. Kg6 {[%clk 0:00:01]}  Rxd5 {[%clk 0:00:03]} 70. Rxd5 {[%clk 0:00:02]}  Kc3 {[%clk 0:00:04]} 71. g5 {[%clk 0:00:03]}  Kc2 {[%clk 0:00:04]} 72. Rc5+ {[%clk 0:00:03]}  Kd3 {[%clk 0:00:03]} 73. Rd5+ {[%clk 0:00:03]}  Ke4 {[%clk 0:00:04]} 74. Rd8 {[%clk 0:00:02]}  Ke3 {[%clk 0:00:04]} 75. Kh7 {[%clk 0:00:02]}  Rf7+ {[%clk 0:00:03]} 76. Kg8 {[%clk 0:00:02]}  Rf5 {[%clk 0:00:03]} 77. g6 {[%clk 0:00:03]}  Rg5 {[%clk 0:00:03]} 78. Kf7 {[%clk 0:00:03]}  Ke2 {[%clk 0:00:03]} 79. Kf6 {[%clk 0:00:04]}  Rxg6+ {[%clk 0:00:03]} 80. Kxg6 {[%clk 0:00:04]}  d1=Q {[%clk 0:00:04]} 81. Rxd1 {[%clk 0:00:04]}  Kxd1 {[%clk 0:00:04]} 1/2-1/2


[Site "https://www.chess.com"]

[Event "Titled Tuesday Blitz January 31 Early 2023"]
[White "Fernandez, Michael"]
[Black "Zahid, Sanatan"]
[WhiteFideId "5803560"]
[BlackFideId "10201963"]
[WhiteElo "2181"]
[BlackElo "1930"]
[Result "0-1"]
[Round "04"]
[TimeControl "180+2"]
[Date "2023.01.31"]
[WhiteClock "0:00:05"]
[BlackClock "0:01:44"]

1. b4 {[%clk 0:02:57]}  Nf6 {[%clk 0:02:58]} 2. Bb2 {[%clk 0:02:57]}  g6 {[%clk 0:02:58]} 3. Nf3 {[%clk 0:02:56]}  Bg7 {[%clk 0:02:58]} 4. e3 {[%clk 0:02:55]}  O-O {[%clk 0:02:58]} 5. Be2 {[%clk 0:02:55]}  b6 {[%clk 0:02:58]} 6. O-O {[%clk 0:02:54]}  Bb7 {[%clk 0:02:57]} 7. a4 {[%clk 0:02:53]}  a6 {[%clk 0:02:55]} 8. d4 {[%clk 0:02:46]}  d6 {[%clk 0:02:52]} 9. c4 {[%clk 0:02:46]}  a5 {[%clk 0:02:52]} 10. b5 {[%clk 0:02:45]}  Nbd7 {[%clk 0:02:52]} 11. Nc3 {[%clk 0:02:44]}  Ne4 {[%clk 0:02:49]} 12. Qc2 {[%clk 0:02:37]}  Nxc3 {[%clk 0:02:48]} 13. Bxc3 {[%clk 0:02:37]}  e5 {[%clk 0:02:48]} 14. Rfd1 {[%clk 0:02:31]}  Qe7 {[%clk 0:02:44]} 15. dxe5 {[%clk 0:02:12]}  dxe5 {[%clk 0:02:44]} 16. Nd2 {[%clk 0:02:10]}  Nc5 {[%clk 0:02:39]} 17. Bf3 {[%clk 0:02:03]}  e4 {[%clk 0:02:17]} 18. Be2 {[%clk 0:02:01]}  Rad8 {[%clk 0:02:16]} 19. Bxg7 {[%clk 0:01:57]}  Kxg7 {[%clk 0:02:16]} 20. Nf1 {[%clk 0:01:57]}  Qe5 {[%clk 0:02:15]} 21. Rxd8 {[%clk 0:01:45]}  Qxa1 {[%clk 0:02:12]} 22. Rxf8 {[%clk 0:01:21]}  Kxf8 {[%clk 0:02:13]} 23. Qd2 {[%clk 0:01:15]}  Ke7 {[%clk 0:02:07]} 24. h4 {[%clk 0:00:53]}  h5 {[%clk 0:02:04]} 25. Kh2 {[%clk 0:00:51]}  Qe5+ {[%clk 0:02:00]} 26. Ng3 {[%clk 0:00:47]}  Nxa4 {[%clk 0:01:57]} 27. f4 {[%clk 0:00:44]}  exf3 {[%clk 0:01:57]} 28. Bxf3 {[%clk 0:00:43]}  Bxf3 {[%clk 0:01:57]} 29. gxf3 {[%clk 0:00:44]}  Nc5 {[%clk 0:01:58]} 30. f4 {[%clk 0:00:39]}  Qe6 {[%clk 0:01:57]} 31. Qc3 {[%clk 0:00:34]}  f6 {[%clk 0:01:55]} 32. Qc2 {[%clk 0:00:28]}  Qg4 {[%clk 0:01:51]} 33. f5 {[%clk 0:00:24]}  Qxh4+ {[%clk 0:01:46]} 34. Kg2 {[%clk 0:00:23]}  Qg4 {[%clk 0:01:46]} 35. fxg6 {[%clk 0:00:22]}  h4 {[%clk 0:01:46]} 36. Qf2 {[%clk 0:00:05]}  Qxg3+ {[%clk 0:01:44]} 0-1


[Site "https://www.chess.com"]

[Event "Titled Tuesday Blitz January 31 Early 2023"]
[White "Urbina Perez, Juan Antonio"]
[Black "Oro, Faustino"]
[WhiteFideId "2217368"]
[BlackFideId "20000197"]
[WhiteElo "2266"]
[BlackElo "2269"]
[Result "1-0"]
[Round "04"]
[TimeControl "180+2"]
[Date "2023.01.31"]
[WhiteClock "0:00:30"]
[BlackClock "0:00:14"]

1. e4 {[%clk 0:02:55]}  c5 {[%clk 0:02:59]} 2. Nf3 {[%clk 0:02:54]}  d6 {[%clk 0:02:58]} 3. d4 {[%clk 0:02:54]}  cxd4 {[%clk 0:02:59]} 4. Nxd4 {[%clk 0:02:55]}  Nf6 {[%clk 0:03:00]} 5. Nc3 {[%clk 0:02:55]}  a6 {[%clk 0:03:00]} 6. Be3 {[%clk 0:02:56]}  e5 {[%clk 0:02:56]} 7. Nf3 {[%clk 0:02:56]}  Be7 {[%clk 0:02:56]} 8. Bc4 {[%clk 0:02:57]}  O-O {[%clk 0:02:57]} 9. O-O {[%clk 0:02:57]}  Be6 {[%clk 0:02:57]} 10. Bxe6 {[%clk 0:02:53]}  fxe6 {[%clk 0:02:58]} 11. a4 {[%clk 0:02:50]}  Nc6 {[%clk 0:02:53]} 12. h3 {[%clk 0:02:45]}  d5 {[%clk 0:02:50]} 13. exd5 {[%clk 0:02:39]}  exd5 {[%clk 0:02:49]} 14. Bg5 {[%clk 0:02:39]}  d4 {[%clk 0:02:32]} 15. Bxf6 {[%clk 0:02:37]}  Rxf6 {[%clk 0:02:26]} 16. Ne4 {[%clk 0:02:37]}  Rf4 {[%clk 0:02:27]} 17. Re1 {[%clk 0:02:35]}  Qd5 {[%clk 0:02:26]} 18. Nfd2 {[%clk 0:02:30]}  Raf8 {[%clk 0:02:24]} 19. f3 {[%clk 0:02:30]}  Nd8 {[%clk 0:02:15]} 20. c3 {[%clk 0:02:27]}  Ne6 {[%clk 0:02:15]} 21. Qb3 {[%clk 0:02:22]}  Rd8 {[%clk 0:02:05]} 22. Qxd5 {[%clk 0:02:05]}  Rxd5 {[%clk 0:02:06]} 23. Re2 {[%clk 0:01:59]}  dxc3 {[%clk 0:01:58]} 24. bxc3 {[%clk 0:01:59]}  Rd3 {[%clk 0:01:58]} 25. Rb1 {[%clk 0:01:57]}  Nd8 {[%clk 0:01:51]} 26. Nc4 {[%clk 0:01:48]}  Rd5 {[%clk 0:01:34]} 27. Kh2 {[%clk 0:01:24]}  Rf7 {[%clk 0:01:23]} 28. Rbb2 {[%clk 0:01:16]}  Bf8 {[%clk 0:01:19]} 29. Rbd2 {[%clk 0:01:15]}  Rxd2 {[%clk 0:01:16]} 30. Rxd2 {[%clk 0:01:16]}  Nc6 {[%clk 0:01:16]} 31. Rd5 {[%clk 0:01:04]}  Rc7 {[%clk 0:01:02]} 32. Nxe5 {[%clk 0:00:56]}  Nxe5 {[%clk 0:00:48]} 33. Rxe5 {[%clk 0:00:57]}  Rc6 {[%clk 0:00:49]} 34. Rd5 {[%clk 0:00:56]}  h6 {[%clk 0:00:44]} 35. Rd7 {[%clk 0:00:56]}  b5 {[%clk 0:00:44]} 36. axb5 {[%clk 0:00:57]}  axb5 {[%clk 0:00:45]} 37. Rb7 {[%clk 0:00:57]}  Ra6 {[%clk 0:00:32]} 38. Rxb5 {[%clk 0:00:51]}  Ra2 {[%clk 0:00:33]} 39. Rb8 {[%clk 0:00:47]}  Kf7 {[%clk 0:00:32]} 40. Rb7+ {[%clk 0:00:45]}  Kg6 {[%clk 0:00:32]} 41. Kg3 {[%clk 0:00:45]}  Rc2 {[%clk 0:00:31]} 42. h4 {[%clk 0:00:45]}  Ba3 {[%clk 0:00:31]} 43. Rb6+ {[%clk 0:00:43]}  Kh7 {[%clk 0:00:30]} 44. Kh3 {[%clk 0:00:42]}  Bc1 {[%clk 0:00:27]} 45. Rc6 {[%clk 0:00:41]}  Bf4 {[%clk 0:00:23]} 46. g3 {[%clk 0:00:41]}  Be5 {[%clk 0:00:23]} 47. Rc5 {[%clk 0:00:38]}  Bb8 {[%clk 0:00:22]} 48. Rc8 {[%clk 0:00:35]}  Ba7 {[%clk 0:00:22]} 49. h5 {[%clk 0:00:32]}  Be3 {[%clk 0:00:19]} 50. Rc7 {[%clk 0:00:31]}  Kg8 {[%clk 0:00:19]} 51. Kg4 {[%clk 0:00:31]}  Bb6 {[%clk 0:00:16]} 52. Rc8+ {[%clk 0:00:30]}  Kf7 {[%clk 0:00:15]} 53. c4 {[%clk 0:00:30]}  Bd4 {[%clk 0:00:15]} 54. c5 {[%clk 0:00:30]}  Rc4 {[%clk 0:00:14]} 55. Nd6+ {[%clk 0:00:30]} 1-0


[Site "https://www.chess.com"]

[Event "Titled Tuesday Blitz January 31 Early 2023"]
[White "Samant Aditya S"]
[Black "Melaugh, Shane"]
[WhiteFideId "35080580"]
[BlackFideId "2509580"]
[WhiteElo "2501"]
[BlackElo "2115"]
[Result "1-0"]
[Round "04"]
[TimeControl "180+2"]
[Date "2023.01.31"]
[WhiteClock "0:00:36"]
[BlackClock "0:00:37"]

1. d4 {[%clk 0:03:00]}  e6 {[%clk 0:02:58]} 2. Bf4 {[%clk 0:03:00]}  d5 {[%clk 0:02:56]} 3. e3 {[%clk 0:03:00]}  Nf6 {[%clk 0:02:56]} 4. Nd2 {[%clk 0:03:00]}  c5 {[%clk 0:02:57]} 5. c3 {[%clk 0:03:00]}  Nc6 {[%clk 0:02:56]} 6. Ngf3 {[%clk 0:03:00]}  Nh5 {[%clk 0:02:51]} 7. Bg5 {[%clk 0:02:51]}  Be7 {[%clk 0:02:37]} 8. Bxe7 {[%clk 0:02:39]}  Qxe7 {[%clk 0:02:38]} 9. Bd3 {[%clk 0:02:39]}  f5 {[%clk 0:02:16]} 10. Ne5 {[%clk 0:02:24]}  Nxe5 {[%clk 0:02:09]} 11. dxe5 {[%clk 0:02:19]}  g6 {[%clk 0:02:09]} 12. O-O {[%clk 0:01:36]}  O-O {[%clk 0:02:02]} 13. f4 {[%clk 0:01:34]}  c4 {[%clk 0:02:00]} 14. Be2 {[%clk 0:01:29]}  Qc5 {[%clk 0:01:59]} 15. Bxh5 {[%clk 0:01:17]}  Qxe3+ {[%clk 0:01:58]} 16. Kh1 {[%clk 0:01:11]}  gxh5 {[%clk 0:01:59]} 17. Rf3 {[%clk 0:01:12]}  Qb6 {[%clk 0:01:53]} 18. Rg3+ {[%clk 0:01:04]}  Kh8 {[%clk 0:01:53]} 19. Qxh5 {[%clk 0:01:04]}  Qxb2 {[%clk 0:01:32]} 20. Rb1 {[%clk 0:00:43]}  Qa3 {[%clk 0:00:46]} 21. Qg5 {[%clk 0:00:39]}  Qe7 {[%clk 0:00:40]} 22. Qxe7 {[%clk 0:00:38]}  Rf7 {[%clk 0:00:39]} 23. Qe8+ {[%clk 0:00:35]}  Rf8 {[%clk 0:00:37]} 24. Qxf8# {[%clk 0:00:36]} 1-0


[Site "https://www.chess.com"]